bitfinex/quotes_BTCUSD_20241010
["timestamp","ask_amount","ask_price","bid_price","bid_amount"]
[1728561419105,0.16083764,61308.0,61305.0,0.07553062]
[1728561419550,0.16083764,61308.0,61305.0,0.07716662]
[1728561419767,0.16483764,61308.0,61305.0,0.07716662]
[1728561420882,0.33394764,61308.0,61305.0,0.07716662]
[1728561423435,0.163114,61307.0,61305.0,0.07716662]
[1728561423669,0.163114,61307.0,61305.0,0.001636]
[1728561423670,0.16083764,61306.0,61305.0,0.001636]
[1728561425049,0.16283764,61306.0,61305.0,0.001636]
[1728561425269,0.16283764,61306.0,61305.0,0.02001472]
[1728561425548,0.16283764,61306.0,61305.0,0.001636]
[1728561425775,0.16283764,61306.0,61305.0,0.02001472]
[1728561426006,0.16283764,61306.0,61305.0,0.001636]
[1728561426251,0.16283764,61306.0,61305.0,0.02001472]
[1728561426483,0.32595364,61306.0,61305.0,0.001636]
[1728561426707,0.16283764,61306.0,61305.0,0.02001472]
[1728561426924,0.16283764,61306.0,61305.0,0.001636]
[1728561427157,0.16683764,61306.0,61305.0,0.001636]
[1728561427389,0.16683764,61306.0,61305.0,0.02001472]
[1728561427611,0.32995364,61306.0,61305.0,0.001636]
[1728561427834,0.32995364,61306.0,61305.0,0.02001472]
[1728561428026,0.32995364,61306.0,61305.0,0.001636]
[1728561428781,0.32795364,61306.0,61305.0,0.001636]
[1728561429267,0.33195364,61306.0,61305.0,0.001636]
[1728561429489,0.32795364,61306.0,61305.0,0.001636]
[1728561430204,0.33395364,61306.0,61305.0,0.001636]
[1728561430668,0.32795364,61306.0,61305.0,0.001636]
[1728561431144,0.33095364,61306.0,61305.0,0.001636]
[1728561431586,0.33595364,61306.0,61305.0,0.001636]
[1728561431818,0.4642372,61306.0,61305.0,0.001636]
[1728561432116,0.33095364,61306.0,61305.0,0.001636]
[1728561432359,0.33295364,61306.0,61305.0,0.001636]
[1728561432594,0.35851941,61306.0,61305.0,0.001636]
[1728561432820,0.36951941,61306.0,61305.0,0.001636]
[1728561433053,0.36051941,61306.0,61305.0,0.001636]
[1728561433544,0.37351941,61306.0,61305.0,0.001636]
[1728561433779,0.38976165,61306.0,61305.0,0.001636]
[1728561434000,0.49665586,61306.0,61305.0,0.001636]
[1728561434468,0.57895586,61306.0,61305.0,0.001636]
[1728561434700,0.56795586,61306.0,61305.0,0.001636]
[1728561434915,0.58095586,61306.0,61305.0,0.001636]
[1728561435135,0.44849588,61306.0,61305.0,0.001636]
[1728561435361,0.49737943,61306.0,61305.0,0.001636]
[1728561436321,0.22272119,61306.0,61305.0,0.001636]
[1728561436552,0.18783764,61306.0,61305.0,0.001636]
[1728561436794,0.18783764,61306.0,61305.0,0.02005878]
[1728561437021,0.18783764,61306.0,61305.0,0.18317678]
[1728561437292,0.18783764,61306.0,61305.0,0.11215878]
[1728561437518,0.18783764,61306.0,61305.0,0.27527678]
[1728561437519,0.17383764,61306.0,61305.0,0.27527678]
[1728561437752,0.16683764,61306.0,61305.0,0.27527678]
[1728561437966,0.17083764,61306.0,61305.0,0.27527678]
[1728561438232,0.004,61306.0,61305.0,0.27527678]
[1728561438458,0.000818,61312.0,61307.0,0.163112]
[1728561438703,0.16083764,61311.0,61307.0,0.163112]
[1728561438930,0.16083764,61311.0,61308.0,0.01839179]
[1728561440380,0.16483764,61311.0,61308.0,0.01839179]
[1728561441102,0.16483764,61311.0,61308.0,0.18150179]
[1728561441566,0.16483764,61311.0,61308.0,0.01839179]
[1728561441567,0.16683764,61311.0,61308.0,0.01839179]
[1728561443151,0.16683764,61311.0,61308.0,0.18149979]
[1728561443604,0.16683764,61311.0,61308.0,0.01839179]
[1728561444181,0.16683764,61311.0,61307.0,0.163113]
[1728561444381,0.16683764,61311.0,61309.0,0.0183955]
[1728561444631,0.16683764,61311.0,61308.0,0.01839707]
[1728561444796,0.16683764,61311.0,61310.0,0.01839392]
[1728561445002,0.16683764,61311.0,61309.0,0.0183955]
[1728561445003,0.32594064,61311.0,61309.0,0.0183955]
[1728561445212,0.32394064,61311.0,61310.0,0.01839392]
[1728561445421,0.16283764,61311.0,61310.0,0.01839392]
[1728561445623,0.16283764,61311.0,61306.0,0.34746264]
[1728561445891,0.16283764,61311.0,61307.0,0.163113]
[1728561446103,0.16283764,61311.0,61308.0,0.01839707]
[1728561446298,0.16483764,61311.0,61306.0,0.34746164]
[1728561446524,0.32794164,61311.0,61307.0,0.01839865]
[1728561446952,0.32394164,61311.0,61307.0,0.01839865]
[1728561447175,0.16083764,61311.0,61308.0,0.32622]
[1728561447410,0.16083764,61311.0,61310.0,0.163105]
[1728561447622,0.004,61311.0,61310.0,0.335405]
[1728561447837,0.004,61311.0,61310.0,0.35378844]
[1728561448038,0.006,61311.0,61310.0,0.35378844]
[1728561448277,0.004,61311.0,61310.0,0.35378844]
[1728561448541,0.006,61311.0,61310.0,0.35378844]
[1728561448756,0.002,61311.0,61310.0,0.35378844]
[1728561448954,0.000818,61312.0,61310.0,0.35378844]
[1728561448955,0.000818,61312.0,61311.0,0.163102]
[1728561449159,0.000818,61312.0,61311.0,0.34744964]
[1728561449279,0.000818,61312.0,61311.0,0.36583102]
[1728561449503,0.16165564,61312.0,61311.0,0.01838138]
[1728561449725,0.32475564,61312.0,61311.0,0.01838138]
[1728561449947,0.32475564,61312.0,61306.0,0.243114]
[1728561450169,0.32394064,61311.0,61306.0,0.243114]
[1728561450392,0.32394064,61311.0,61306.0,0.08]
[1728561450393,0.16083764,61311.0,61306.0,0.08]
[1728561450615,0.16483764,61311.0,61306.0,0.08]
[1728561450856,0.163105,61310.0,61306.0,0.08]
[1728561451090,0.16083764,61309.0,61306.0,0.08]
[1728561451953,0.16083764,61309.0,61306.0,0.243114]
[1728561452213,0.16083764,61309.0,61306.0,0.08]
[1728561452652,0.16083764,61309.0,61306.0,0.243115]
[1728561452876,0.16083764,61309.0,61306.0,0.08]
[1728561453094,0.16083764,61309.0,61307.0,0.163112]
[1728561453307,0.16083764,61309.0,61308.0,0.16311]
[1728561453765,0.16283764,61309.0,61308.0,0.16311]
[1728561454192,0.16083764,61309.0,61308.0,0.16311]
[1728561454646,0.16283764,61309.0,61308.0,0.16311]
[1728561455480,0.16283764,61309.0,61308.0,0.18147981]
[1728561457251,0.002,61309.0,61308.0,0.18147981]
[1728561460334,0.002,61309.0,61308.0,0.18347981]
[1728561460535,0.002,61309.0,61308.0,0.18147981]
[1728561463541,0.002,61309.0,61308.0,0.18647981]
[1728561463995,0.002,61309.0,61308.0,0.20367233]
[1728561466810,0.002,61309.0,61308.0,0.21887314]
[1728561467724,0.002,61309.0,61308.0,0.20367233]
[1728561469683,0.002,61309.0,61308.0,0.20167233]
[1728561470545,0.002,61309.0,61308.0,0.32454984]
[1728561470795,0.002,61309.0,61308.0,0.32254984]
[1728561471022,0.002,61309.0,61308.0,0.32454984]
[1728561471293,0.002,61309.0,61308.0,0.44542735]
[1728561472646,0.002,61309.0,61308.0,0.44342735]
[1728561473093,0.002,61309.0,61308.0,0.44542735]
[1728561473728,0.002,61309.0,61308.0,0.44543273]
[1728561474204,0.002,61309.0,61308.0,0.46063154]
[1728561475263,0.002,61309.0,61308.0,0.45863154]
[1728561475498,0.002,61309.0,61308.0,0.46063154]
[1728561477058,0.002,61309.0,61308.0,0.46063464]
[1728561480122,0.002,61309.0,61308.0,0.46227064]
[1728561481202,0.002,61309.0,61308.0,0.46027064]
[1728561482551,0.002,61309.0,61308.0,0.44507183]
[1728561482767,0.002,61309.0,61308.0,0.46027778]
[1728561482983,0.002,61309.0,61308.0,0.46227778]
[1728561483212,0.002,61309.0,61308.0,0.46027778]
[1728561483421,0.000818,61312.0,61308.0,0.29716778]
[1728561483655,0.000818,61312.0,61311.0,0.28397951]
[1728561483879,0.000818,61312.0,61311.0,0.29918051]
[1728561484100,0.000818,61312.0,61311.0,0.31785472]
[1728561484778,0.001818,61312.0,61311.0,0.31785472]
[1728561485015,0.001818,61312.0,61311.0,0.19697721]
[1728561485444,0.001818,61312.0,61311.0,0.03387521]
[1728561485445,0.26075564,61312.0,61311.0,0.03387521]
[1728561485729,0.26075564,61312.0,61311.0,0.01867421]
[1728561485730,0.50015564,61312.0,61311.0,0.01867421]
[1728561485977,0.33705564,61312.0,61308.0,0.002636]
[1728561486205,0.32394064,61311.0,61308.0,0.002636]
[1728561486407,0.32394064,61311.0,61309.0,0.01867736]
[1728561486408,0.163105,61310.0,61309.0,0.01867736]
[1728561486624,0.163105,61310.0,61308.0,0.002636]
[1728561486625,0.32394264,61310.0,61308.0,0.001636]
[1728561486835,0.16083764,61309.0,61308.0,0.001636]
[1728561488149,0.16183764,61309.0,61308.0,0.02031494]
[1728561488340,0.16183764,61309.0,61308.0,0.001636]
[1728561488557,0.16183764,61309.0,61308.0,0.02031494]
[1728561488772,0.16183764,61309.0,61308.0,0.001636]
[1728561488997,0.16583764,61309.0,61308.0,0.001636]
[1728561489219,0.16583764,61309.0,61308.0,0.02031494]
[1728561492619,0.32894564,61309.0,61308.0,0.02031494]
[1728561493058,0.32894564,61309.0,61308.0,0.001636]
[1728561493318,0.16583764,61309.0,61308.0,0.001636]
[1728561496013,0.16583764,61309.0,61308.0,0.02074987]
[1728561501153,0.32894564,61309.0,61308.0,0.02074987]
[1728561501595,0.32894564,61309.0,61308.0,0.001636]
[1728561504166,0.32784564,61309.0,61308.0,0.001636]
[1728561504894,0.16473764,61309.0,61308.0,0.001636]
[1728561505332,0.16473764,61309.0,61308.0,0.02108769]
[1728561505541,0.16473764,61309.0,61308.0,0.001636]
[1728561507112,0.16473764,61309.0,61308.0,0.02108769]
[1728561507345,0.16473764,61309.0,61308.0,0.001636]
[1728561507606,0.32784564,61309.0,61308.0,0.02108769]
[1728561507833,0.32784564,61309.0,61308.0,0.001636]
[1728561508075,0.16473764,61309.0,61308.0,0.001636]
[1728561508566,0.16473764,61309.0,61308.0,0.02108769]
[1728561508813,0.16473764,61309.0,61308.0,0.001636]
[1728561509033,0.16473764,61309.0,61308.0,0.02108769]
[1728561509528,0.57379768,61309.0,61308.0,0.02108769]
[1728561509769,0.32784564,61309.0,61308.0,0.02108769]
[1728561509995,0.32784564,61309.0,61308.0,0.001636]
[1728561516252,0.32866364,61309.0,61308.0,0.001636]
[1728561524030,0.3776496,61309.0,61308.0,0.001636]
[1728561524250,0.3736496,61309.0,61308.0,0.001636]
[1728561524468,0.3726496,61309.0,61308.0,0.001636]
[1728561524694,0.3836496,61309.0,61308.0,0.001636]
[1728561524910,0.3926496,61309.0,61308.0,0.001636]
[1728561525601,0.39264575,61309.0,61308.0,0.001636]
[1728561528325,0.34366364,61309.0,61308.0,0.001636]
[1728561528748,0.39264575,61309.0,61308.0,0.001636]
[1728561531729,0.38364575,61309.0,61308.0,0.001636]
[1728561531968,0.39165934,61309.0,61308.0,0.001636]
[1728561532218,0.38065934,61309.0,61308.0,0.001636]
[1728561532445,0.34166364,61309.0,61308.0,0.001636]
[1728561532642,0.39065934,61309.0,61308.0,0.001636]
[1728561540798,0.34166364,61309.0,61308.0,0.001636]
[1728561541027,0.39065989,61309.0,61308.0,0.001636]
[1728561545190,0.39066323,61309.0,61308.0,0.001636]
[1728561549853,0.39067037,61309.0,61308.0,0.001636]
[1728561550531,0.34166364,61309.0,61308.0,0.001636]
[1728561554552,0.41517374,61309.0,61308.0,0.001636]
[1728561554776,0.41519012,61309.0,61308.0,0.001636]
[1728561568678,0.41519012,61309.0,61308.0,0.01967756]
[1728561569354,0.41520277,61309.0,61308.0,0.001636]
[1728561569593,0.41520277,61309.0,61308.0,0.01967756]
[1728561569868,0.41520277,61309.0,61308.0,0.001636]
[1728561570071,0.41520277,61309.0,61308.0,0.01967756]
[1728561577323,0.25209477,61309.0,61308.0,0.01967756]
[1728561577553,0.41520277,61309.0,61308.0,0.01967756]
[1728561578963,0.41520309,61309.0,61308.0,0.01967756]
[1728561579195,0.41520309,61309.0,61308.0,0.001636]
[1728561579414,0.41520309,61309.0,61308.0,0.02000249]
[1728561579644,0.41520309,61309.0,61308.0,0.001636]
[1728561579861,0.25209509,61309.0,61308.0,0.02000249]
[1728561580089,0.41520309,61309.0,61308.0,0.001636]
[1728561580371,0.22758114,61309.0,61308.0,0.001636]
[1728561580608,0.22758114,61309.0,61308.0,0.14088]
[1728561580835,0.17855564,61309.0,61308.0,0.12251351]
[1728561581058,0.17855564,61309.0,61308.0,0.14088]
[1728561581777,0.16055564,61309.0,61308.0,0.39969]
[1728561582032,0.16055564,61309.0,61308.0,0.60136751]
[1728561582033,0.007818,61309.0,61308.0,0.60136751]
[1728561582267,0.007818,61309.0,61308.0,0.67241448]
[1728561582268,0.016818,61309.0,61308.0,0.67241448]
[1728561582522,0.016818,61309.0,61308.0,0.64798324]
[1728561582755,0.007818,61309.0,61308.0,0.64798324]
[1728561582988,0.007818,61309.0,61308.0,0.64998324]
[1728561583218,0.000818,61309.0,61308.0,0.62561223]
[1728561583689,0.000818,61309.0,61308.0,0.62261223]
[1728561583690,0.001818,61309.0,61308.0,0.62261223]
[1728561583915,0.002818,61309.0,61308.0,0.62661223]
[1728561584175,0.002818,61309.0,61308.0,0.65073214]
[1728561584883,0.002818,61309.0,61308.0,0.64873214]
[1728561586275,0.002818,61309.0,61308.0,0.63348742]
[1728561587208,0.002818,61309.0,61308.0,0.63548742]
[1728561587430,0.002818,61309.0,61308.0,0.3917324]
[1728561587660,0.002818,61309.0,61308.0,0.63348742]
[1728561589392,0.002818,61309.0,61308.0,0.63548742]
[1728561589880,0.002818,61309.0,61308.0,0.65069387]
[1728561590798,0.002818,61309.0,61308.0,0.64869387]
[1728561591772,0.002818,61309.0,61308.0,0.63348742]
[1728561592002,0.002818,61309.0,61308.0,0.64868939]
[1728561592235,0.002818,61309.0,61308.0,0.63348742]
[1728561592913,0.001818,61309.0,61308.0,0.63148742]
[1728561593366,0.000818,61309.0,61308.0,0.63048742]
[1728561593813,0.002818,61309.0,61308.0,0.63448742]
[1728561595013,0.001818,61309.0,61308.0,0.63248742]
[1728561595757,0.16365564,61309.0,61308.0,0.02400249]
[1728561595989,0.32676364,61309.0,61308.0,0.02400249]
[1728561596221,0.32676364,61309.0,61308.0,0.005636]
[1728561596463,0.32676364,61309.0,61308.0,0.003636]
[1728561596692,0.32576364,61309.0,61308.0,0.003636]
[1728561597163,0.33476364,61309.0,61308.0,0.003636]
[1728561597389,0.33476364,61309.0,61308.0,0.02008354]
[1728561597621,0.33476364,61309.0,61308.0,0.003636]
[1728561597875,0.33476364,61309.0,61308.0,0.02008354]
[1728561598109,0.33376364,61309.0,61308.0,0.001636]
[1728561598349,0.33376364,61309.0,61308.0,0.01801722]
[1728561598574,0.34076364,61309.0,61308.0,0.01801722]
[1728561600411,0.34076364,61309.0,61308.0,0.01732722]
[1728561605653,0.17765564,61309.0,61308.0,0.01732722]
[1728561606169,0.016818,61309.0,61308.0,0.30131473]
[1728561606644,0.016818,61309.0,61308.0,0.26003722]
[1728561607818,0.009818,61309.0,61308.0,0.26003722]
[1728561608048,0.010818,61309.0,61308.0,0.26203722]
[1728561608518,0.001818,61309.0,61308.0,0.44624575]
[1728561608979,0.001818,61309.0,61308.0,0.44824575]
[1728561610133,0.001818,61309.0,61308.0,0.18443722]
[1728561610383,0.001818,61309.0,61308.0,0.36864575]
[1728561611615,0.001818,61309.0,61308.0,0.46544575]
[1728561611844,0.001818,61309.0,61308.0,0.54414575]
[1728561612771,0.001818,61309.0,61308.0,0.73535428]
[1728561613000,0.001818,61309.0,61308.0,0.54914575]
[1728561613252,0.001818,61309.0,61308.0,0.73535428]
[1728561613727,0.001818,61309.0,61308.0,0.83535428]
[1728561613985,0.001818,61309.0,61308.0,0.85835428]
[1728561614222,0.001818,61309.0,61308.0,0.90700066]
[1728561614450,0.001818,61309.0,61308.0,0.90699155]
[1728561614910,0.000818,61309.0,61308.0,0.90499155]
[1728561615158,0.001818,61309.0,61308.0,0.90599155]
[1728561616806,0.002818,61309.0,61308.0,0.90899155]
[1728561617268,0.000818,61312.0,61311.0,0.170102]
[1728561617504,0.000818,61312.0,61311.0,0.45231053]
[1728561617745,0.000818,61312.0,61311.0,0.46936558]
[1728561618425,0.001818,61312.0,61311.0,0.48136558]
[1728561618651,0.002818,61312.0,61311.0,0.48736558]
[1728561619158,0.002818,61312.0,61311.0,0.48936558]
[1728561619383,0.002818,61312.0,61311.0,0.48736558]
[1728561619612,0.002818,61312.0,61311.0,0.48936558]
[1728561619848,0.002818,61312.0,61311.0,0.48736558]
[1728561621229,0.002818,61312.0,61311.0,0.48936558]
[1728561621967,0.002818,61312.0,61311.0,0.48736558]
[1728561622201,0.002818,61312.0,61311.0,0.48936558]
[1728561623354,0.002818,61312.0,61311.0,0.48736558]
[1728561628286,0.175018,61312.0,61311.0,0.03505505]
[1728561629191,0.173018,61312.0,61311.0,0.01705505]
[1728561629429,0.173018,61312.0,61311.0,0.18015705]
[1728561629664,0.175018,61312.0,61311.0,0.03005505]
[1728561629895,0.49795564,61312.0,61311.0,0.02205505]
[1728561630131,0.49695564,61312.0,61311.0,0.01705505]
[1728561630361,0.163105,61310.0,61309.0,0.00469526]
[1728561630589,0.163105,61310.0,61309.0,0.02175796]
[1728561630590,0.32394264,61310.0,61309.0,0.02175796]
[1728561631042,0.32394264,61310.0,61309.0,0.00469526]
[1728561631274,0.32394264,61310.0,61309.0,0.00363894]
[1728561632033,0.32476064,61310.0,61309.0,0.00363894]
[1728561632504,0.32476064,61310.0,61309.0,0.00563894]
[1728561632747,0.16165564,61310.0,61309.0,0.00563894]
[1728561633189,0.16165564,61310.0,61309.0,0.02270164]
[1728561633631,0.32476064,61310.0,61309.0,0.02270164]
[1728561633852,0.16265564,61310.0,61309.0,0.02270164]
[1728561634328,0.16165564,61310.0,61309.0,0.02270164]
[1728561634603,0.16165564,61310.0,61309.0,0.02070164]
[1728561635051,0.32776064,61310.0,61309.0,0.02070164]
[1728561635505,0.16465564,61310.0,61309.0,0.02070164]
[1728561635728,0.16965564,61310.0,61309.0,0.02070164]
[1728561636422,0.33276064,61310.0,61309.0,0.02070164]
[1728561636874,0.33276064,61310.0,61309.0,0.00363894]
[1728561637137,0.50786064,61310.0,61309.0,0.00363894]
[1728561638799,0.66866725,61310.0,61309.0,0.00363894]
[1728561639266,0.50786064,61310.0,61309.0,0.00363894]
[1728561644168,0.50786064,61310.0,61309.0,0.00527494]
[1728561653577,0.14531115,61310.0,61309.0,0.00527494]
[1728561653812,0.008818,61310.0,61309.0,0.44838294]
[1728561654044,0.008818,61310.0,61309.0,0.48570684]
[1728561654510,0.008818,61310.0,61309.0,0.48770684]
[1728561654754,0.003818,61310.0,61309.0,0.48770684]
[1728561655206,0.004818,61310.0,61309.0,0.49270684]
[1728561655440,0.004818,61310.0,61309.0,0.54132583]
[1728561655669,0.24595204,61323.0,61322.0,0.36280588]
[1728561655927,0.24595204,61323.0,61322.0,0.37799938]
[1728561656148,0.24595204,61323.0,61322.0,0.39574316]
[1728561656373,0.24595204,61330.0,61329.0,0.163054]
[1728561656596,0.24595204,61330.0,61329.0,0.34710903]
[1728561656597,0.40678968,61330.0,61329.0,0.34710903]
[1728561656820,0.40678968,61330.0,61329.0,0.36484176]
[1728561656821,0.16083764,61330.0,61329.0,0.36484176]
[1728561658904,0.16683764,61330.0,61329.0,0.36584176]
[1728561659381,0.16983764,61330.0,61329.0,0.36584176]
[1728561661705,0.009,61330.0,61329.0,0.36584176]
[1728561661949,0.000818,61336.0,61329.0,0.36584176]
[1728561661950,0.000818,61336.0,61334.0,0.263041]
[1728561662172,0.000818,61336.0,61334.0,0.63615106]
[1728561662412,0.000818,61336.0,61334.0,0.6542829]
[1728561662658,0.000818,61336.0,61334.0,0.47022787]
[1728561662901,0.000818,61336.0,61334.0,0.36522787]
[1728561663803,0.001818,61335.0,61334.0,0.37522787]
[1728561664034,0.000818,61335.0,61334.0,0.36522787]
[1728561664257,0.001818,61335.0,61334.0,0.37522787]
[1728561665786,0.002818,61335.0,61334.0,0.38922787]
[1728561666228,0.001818,61335.0,61334.0,0.37522787]
[1728561666672,0.002818,61335.0,61334.0,0.39122787]
[1728561666915,0.002818,61335.0,61334.0,0.39622787]
[1728561667139,0.002818,61335.0,61334.0,0.57222787]
[1728561667355,0.002818,61335.0,61334.0,0.38817284]
[1728561667599,0.002818,61335.0,61334.0,0.57222787]
[1728561668061,0.002818,61335.0,61334.0,0.57022787]
[1728561668282,0.002818,61335.0,61334.0,0.38617284]
[1728561668500,0.002818,61335.0,61334.0,0.57022787]
[1728561668720,0.002818,61335.0,61334.0,0.38922787]
[1728561673032,0.002818,61335.0,61334.0,0.20517284]
[1728561673281,0.16365564,61335.0,61334.0,0.04213184]
[1728561674437,0.16365564,61335.0,61334.0,0.38922787]
[1728561675374,0.16265564,61335.0,61334.0,0.37922787]
[1728561675593,0.16165564,61335.0,61334.0,0.36722787]
[1728561681708,0.000818,61335.0,61334.0,0.36722787]
[1728561683661,0.000318,61335.0,61334.0,0.36722787]
[1728561684447,0.000318,61335.0,61334.0,0.38242171]
[1728561686274,0.16115564,61335.0,61334.0,0.38242171]
[1728561686527,0.16115564,61335.0,61334.0,0.20136668]
[1728561686798,0.16115564,61335.0,61334.0,0.19637407]
[1728561687278,0.16315564,61335.0,61334.0,0.4014291]
[1728561688903,0.002318,61335.0,61334.0,0.4014291]
[1728561690176,0.002318,61335.0,61334.0,0.40143389]
[1728561692307,0.002318,61335.0,61334.0,0.21737886]
[1728561696537,0.002318,61335.0,61334.0,0.21738829]
[1728561704815,0.002318,61335.0,61334.0,0.20217284]
[1728561705330,0.002318,61335.0,61334.0,0.20380884]
[1728561706589,0.002318,61335.0,61334.0,0.04076784]
[1728561706590,0.16315564,61335.0,61334.0,0.04076784]
[1728561706837,0.16315564,61335.0,61334.0,0.20380884]
[1728561712884,0.002318,61335.0,61334.0,0.20380884]
[1728561715667,0.002318,61335.0,61334.0,0.25251401]
[1728561716805,0.002318,61335.0,61334.0,0.30380884]
[1728561717028,0.002318,61335.0,61334.0,0.57579131]
[1728561717255,0.002318,61335.0,61334.0,0.59101122]
[1728561717974,0.002318,61335.0,61334.0,0.59301122]
[1728561718205,0.002318,61335.0,61334.0,0.59101122]
[1728561718687,0.002318,61335.0,61334.0,0.68820037]
[1728561719379,0.002318,61335.0,61334.0,0.77110037]
[1728561719573,0.002318,61335.0,61334.0,0.69807854]
[1728561719820,0.002318,61335.0,61334.0,0.68285863]
[1728561720312,0.002318,61335.0,61334.0,0.69806717]
[1728561720747,0.002318,61335.0,61334.0,0.77108142]
[1728561721431,0.002318,61335.0,61334.0,0.59129895]
[1728561722547,0.002318,61335.0,61334.0,0.5182847]
[1728561722783,1.002318,61335.0,61334.0,0.5182847]
[1728561725198,1.002318,61335.0,61334.0,0.78233186]
[1728561725402,0.54793697,61335.0,61334.0,0.89317737]
[1728561725638,0.21412507,61335.0,61334.0,1.10527923]
[1728561725888,0.21412507,61335.0,61334.0,1.07271241]
[1728561726387,0.21412507,61335.0,61334.0,1.06371241]
[1728561726898,0.21412507,61335.0,61334.0,1.18520959]
[1728561727145,0.21512507,61335.0,61334.0,1.19720959]
[1728561727379,0.21512507,61335.0,61334.0,1.06371241]
[1728561727625,0.21512507,61335.0,61334.0,1.07771241]
[1728561727838,0.21594307,61335.0,61334.0,1.07771241]
[1728561728504,0.21594307,61335.0,61334.0,1.0625142]
[1728561728721,0.21594307,61335.0,61334.0,1.07767807]
[1728561729191,0.21594307,61335.0,61334.0,0.6977854]
[1728561729192,0.21494307,61335.0,61334.0,0.6977854]
[1728561729196,0.21494307,61335.0,61334.0,0.38469309]
[1728561729412,0.21494307,61335.0,61334.0,0.35014003]
[1728561729857,0.21494307,61335.0,61334.0,0.32214003]
[1728561730083,0.21494307,61335.0,61334.0,0.19797271]
[1728561730340,0.21494307,61335.0,61334.0,0.22597271]
[1728561731211,0.21494307,61335.0,61334.0,0.21197271]
[1728561731428,0.21494307,61335.0,61334.0,0.32597271]
[1728561731648,0.21494307,61335.0,61334.0,0.31198076]
[1728561731865,0.21494307,61335.0,61334.0,0.32198076]
[1728561732099,0.21494307,61335.0,61334.0,0.30798076]
[1728561732552,0.21494307,61335.0,61334.0,0.31698076]
[1728561733505,0.21982127,61335.0,61334.0,0.31698076]
[1728561734823,0.21982127,61335.0,61334.0,0.30180884]
[1728561735048,0.21982127,61335.0,61334.0,0.3169839]
[1728561735265,0.21982127,61335.0,61334.0,0.2169839]
[1728561736586,0.38065891,61335.0,61334.0,0.2169839]
[1728561738611,0.38065891,61335.0,61334.0,0.21698609]
[1728561739488,0.38065891,61335.0,61334.0,0.20180884]
[1728561739924,0.38065891,61335.0,61334.0,0.2169867]
[1728561740137,0.21982127,61335.0,61334.0,0.2169867]
[1728561740598,0.21982127,61335.0,61334.0,0.3169867]
[1728561741274,0.21982127,61335.0,61334.0,0.60039452]
[1728561741505,0.21982127,61335.0,61334.0,0.60032299]
[1728561741506,0.18307723,61335.0,61334.0,0.60032299]
[1728561742148,0.18307723,61335.0,61334.0,0.59132299]
[1728561742369,0.18307723,61335.0,61334.0,0.76615181]
[1728561742596,0.18307723,61335.0,61334.0,0.97320684]
[1728561742821,0.18307723,61335.0,61334.0,0.76515181]
[1728561743048,0.18307723,61335.0,61334.0,0.66805469]
[1728561743272,0.18307723,61335.0,61334.0,0.69605469]
[1728561743502,0.18307723,61335.0,61334.0,0.86610972]
[1728561743736,0.18307723,61335.0,61334.0,0.77333964]
[1728561743961,0.18307723,61335.0,61334.0,0.75933964]
[1728561744628,0.18307723,61335.0,61334.0,0.77333964]
[1728561745290,0.18307723,61335.0,61334.0,0.95739467]
[1728561745517,0.18307723,61335.0,61334.0,0.7581706]
[1728561745736,0.18307723,61335.0,61334.0,0.53309176]
[1728561745953,0.18307723,61335.0,61334.0,0.51909176]
[1728561746163,0.18307723,61335.0,61334.0,0.50709176]
[1728561746407,0.18307723,61335.0,61334.0,0.52109176]
[1728561746667,0.18307723,61335.0,61334.0,0.59387188]
[1728561746927,0.18307723,61335.0,61334.0,0.59187188]
[1728561747388,0.18307723,61335.0,61334.0,0.59188909]
[1728561747605,0.18307723,61335.0,61334.0,0.60588909]
[1728561748007,0.18307723,61335.0,61334.0,0.59188909]
[1728561748489,0.18307723,61335.0,61334.0,0.59388909]
[1728561748982,0.18307723,61335.0,61334.0,0.59188909]
[1728561749247,0.18307723,61335.0,61334.0,0.57788909]
[1728561749548,0.18307723,61335.0,61334.0,0.59188909]
[1728561749755,0.18307723,61335.0,61334.0,0.60588909]
[1728561750249,0.18307723,61335.0,61334.0,0.42875758]
[1728561751448,0.18307723,61335.0,61334.0,0.63015529]
[1728561751992,0.18307723,61335.0,61334.0,0.61499649]
[1728561752242,0.18307723,61335.0,61334.0,0.53310987]
[1728561752478,0.18307723,61335.0,61334.0,0.63016313]
[1728561754371,0.18307723,61335.0,61334.0,0.53310987]
[1728561755588,0.18307723,61335.0,61334.0,0.63016313]
[1728561755808,0.18307723,61335.0,61334.0,0.53310987]
[1728561756456,0.18307723,61335.0,61334.0,0.63016313]
[1728561756674,0.18307723,61335.0,61334.0,0.63034527]
[1728561757745,0.18307723,61335.0,61334.0,0.63234527]
[1728561757953,0.18307723,61335.0,61334.0,0.53522699]
[1728561758401,0.14633419,61335.0,61334.0,0.53522699]
[1728561758821,0.14633419,61335.0,61334.0,0.69606463]
[1728561759050,0.14633419,61335.0,61334.0,0.79196463]
[1728561759309,0.000818,61336.0,61335.0,0.293039]
[1728561759310,2e-08,61336.0,61335.0,0.293039]
[1728561759557,2e-08,61336.0,61335.0,0.54964328]
[1728561759781,2e-08,61336.0,61335.0,0.56613034]
[1728561760403,2e-08,61336.0,61335.0,0.58013034]
[1728561760848,2e-08,61336.0,61335.0,0.56613034]
[1728561761189,2e-08,61336.0,61335.0,0.58013034]
[1728561762165,2e-08,61336.0,61335.0,0.59413034]
[1728561764617,2e-08,61336.0,61335.0,0.59413972]
[1728561765078,2e-08,61336.0,61335.0,0.32270208]
[1728561765471,2e-08,61336.0,61335.0,0.32770208]
[1728561765657,2e-08,61336.0,61335.0,0.35191328]
[1728561766078,2e-08,61336.0,61335.0,0.33791328]
[1728561766304,2e-08,61336.0,61335.0,0.33291328]
[1728561766460,2e-08,61336.0,61335.0,0.35191328]
[1728561766862,2e-08,61336.0,61335.0,0.33291328]
[1728561767066,2e-08,61336.0,61335.0,0.33791328]
[1728561767441,2e-08,61336.0,61335.0,0.35191328]
[1728561767644,2e-08,61336.0,61335.0,0.35192866]
[1728561770746,2e-08,61336.0,61335.0,0.34692866]
[1728561770997,2e-08,61336.0,61335.0,0.3469401]
[1728561771383,2e-08,61336.0,61335.0,0.3519401]
[1728561771610,2e-08,61336.0,61335.0,0.3469401]
[1728561772018,2e-08,61336.0,61335.0,0.3519401]
[1728561772249,2e-08,61336.0,61335.0,0.3469401]
[1728561773596,0.000818,61338.0,61335.0,0.36815121]
[1728561773798,0.000818,61338.0,61337.0,0.263033]
[1728561774124,0.000818,61338.0,61337.0,0.53033324]
[1728561774328,0.000818,61338.0,61337.0,0.4111635]
[1728561774533,0.000818,61338.0,61337.0,0.33831621]